[Event "*** SCC Grand Prix: Titled Tuesday Blitz"]
[Site "Chess.com"]
[Date "2020.06.02"]
[Round "1"]
[White "theredking89"]
[Black "Parkas"]
[Result "1/2-1/2"]
[WhiteElo "2633"]
[BlackElo "2313"]
[TimeControl "180+1"]
[EndTime "10:09:24 PDT"]
[Termination "Game drawn - insufficient material"]

1. e4 {[%clk 0:03:00.9]} 1... g6 {[%clk 0:03:00.2]} 2. d4 {[%clk 0:03:00]} 2...
Bg7 {[%clk 0:03:00.6]} 3. Nf3 {[%clk 0:03:00.2]} 3... d6 {[%clk 0:02:58.2]} 4.
Bc4 {[%clk 0:03:00.2]} 4... c6 {[%clk 0:02:48]} 5. Bb3 {[%clk 0:02:57.7]} 5...
Nf6 {[%clk 0:02:45.7]} 6. Qe2 {[%clk 0:02:57]} 6... O-O {[%clk 0:02:42]} 7. h3
{[%clk 0:02:56.3]} 7... a5 {[%clk 0:02:37.7]} 8. a4 {[%clk 0:02:53]} 8... b6
{[%clk 0:02:36.4]} 9. e5 {[%clk 0:02:45.1]} 9... Nd5 {[%clk 0:02:28.5]} 10. O-O
{[%clk 0:02:41.3]} 10... Ba6 {[%clk 0:02:13.1]} 11. c4 {[%clk 0:02:41]} 11... e6
{[%clk 0:02:08.5]} 12. Bg5 {[%clk 0:02:34]} 12... Qc7 {[%clk 0:02:00.6]} 13.
Nbd2 {[%clk 0:02:24.1]} 13... dxe5 {[%clk 0:01:56.6]} 14. dxe5 {[%clk
0:02:21.7]} 14... Nb4 {[%clk 0:01:45.4]} 15. Ne4 {[%clk 0:02:16.6]} 15... Nd7
{[%clk 0:01:27.4]} 16. Nf6+ {[%clk 0:02:16.1]} 16... Bxf6 {[%clk 0:01:00.4]} 17.
exf6 {[%clk 0:02:17]} 17... Nc5 {[%clk 0:01:00.3]} 18. Qe3 {[%clk 0:01:52.3]}
18... Rfd8 {[%clk 0:00:59.3]} 19. Bh4 {[%clk 0:01:16.2]} 19... Qd6 {[%clk
0:00:59]} 20. Rfd1 {[%clk 0:01:12.8]} 20... Qf8 {[%clk 0:00:58.7]} 21. Bg3
{[%clk 0:00:56.8]} 21... Nbd3 {[%clk 0:00:29.5]} 22. Ba2 {[%clk 0:00:35]} 22...
Rd7 {[%clk 0:00:28.4]} 23. Ne5 {[%clk 0:00:29.4]} 23... Nxe5 {[%clk 0:00:27.5]}
24. Bxe5 {[%clk 0:00:26.3]} 24... Rad8 {[%clk 0:00:27.7]} 25. Rxd7 {[%clk
0:00:21.3]} 25... Rxd7 {[%clk 0:00:28.6]} 26. Bb3 {[%clk 0:00:11.4]} 26... Rd3
{[%clk 0:00:28.3]} 27. Qf4 {[%clk 0:00:07.7]} 27... Nxb3 {[%clk 0:00:26.7]} 28.
Re1 {[%clk 0:00:03.6]} 28... Nc5 {[%clk 0:00:26.6]} 29. Bc7 {[%clk 0:00:03.2]}
29... Nd7 {[%clk 0:00:21.4]} 30. Qe4 {[%clk 0:00:03.5]} 30... Rd2 {[%clk
0:00:18.9]} 31. Qxc6 {[%clk 0:00:03.7]} 31... Nxf6 {[%clk 0:00:18.6]} 32. Bxb6
{[%clk 0:00:03.4]} 32... Qc8 {[%clk 0:00:09.8]} 33. Qf3 {[%clk 0:00:02.9]} 33...
Ne8 {[%clk 0:00:08.6]} 34. Bxa5 {[%clk 0:00:03.1]} 34... Rd7 {[%clk 0:00:07]}
35. Bc3 {[%clk 0:00:03.6]} 35... Bb7 {[%clk 0:00:04.6]} 36. Qe3 {[%clk
0:00:04.5]} 36... Qc6 {[%clk 0:00:04.7]} 37. f3 {[%clk 0:00:05]} 37... f6 {[%clk
0:00:03.8]} 38. Qf2 {[%clk 0:00:04.9]} 38... e5 {[%clk 0:00:04.3]} 39. Qe2
{[%clk 0:00:04.8]} 39... Qd6 {[%clk 0:00:04.5]} 40. Qe3 {[%clk 0:00:04.8]} 40...
Qd3 {[%clk 0:00:04.5]} 41. Qxd3 {[%clk 0:00:05]} 41... Rxd3 {[%clk 0:00:04.5]}
42. a5 {[%clk 0:00:05.9]} 42... Nc7 {[%clk 0:00:03.6]} 43. Ra1 {[%clk
0:00:06.5]} 43... Ba6 {[%clk 0:00:03.8]} 44. Ra3 {[%clk 0:00:06.9]} 44... Bxc4
{[%clk 0:00:04.1]} 45. Ra4 {[%clk 0:00:07.4]} 45... Ba6 {[%clk 0:00:04.4]} 46.
Rb4 {[%clk 0:00:07.6]} 46... Nb5 {[%clk 0:00:04.7]} 47. Rc4 {[%clk 0:00:07.7]}
47... Nxc3 {[%clk 0:00:03.9]} 48. Rc6 {[%clk 0:00:08.1]} 48... Bb5 {[%clk
0:00:03.6]} 49. Rc8+ {[%clk 0:00:07.5]} 49... Kf7 {[%clk 0:00:03.6]} 50. bxc3
{[%clk 0:00:08.4]} 50... Ke6 {[%clk 0:00:03.1]} 51. Rc7 {[%clk 0:00:08.4]} 51...
Kd5 {[%clk 0:00:03.4]} 52. Rxh7 {[%clk 0:00:08.4]} 52... Rxc3 {[%clk 0:00:03.8]}
53. Rg7 {[%clk 0:00:08.7]} 53... g5 {[%clk 0:00:04.3]} 54. Rb7 {[%clk
0:00:08.8]} 54... Rc1+ {[%clk 0:00:04.5]} 55. Kh2 {[%clk 0:00:08.6]} 55... Bc6
{[%clk 0:00:05.4]} 56. Rb6 {[%clk 0:00:08.5]} 56... Ra1 {[%clk 0:00:05.6]} 57.
a6 {[%clk 0:00:08.2]} 57... Kc5 {[%clk 0:00:06.2]} 58. Rb8 {[%clk 0:00:08.4]}
58... Rxa6 {[%clk 0:00:06.7]} 59. Rf8 {[%clk 0:00:08.9]} 59... Bd5 {[%clk
0:00:06.8]} 60. h4 {[%clk 0:00:09.4]} 60... gxh4 {[%clk 0:00:06.6]} 61. Kh3
{[%clk 0:00:09.9]} 61... Kd4 {[%clk 0:00:07.1]} 62. Kxh4 {[%clk 0:00:10.1]}
62... Ke3 {[%clk 0:00:07.6]} 63. Kg3 {[%clk 0:00:10.5]} 63... Rd6 {[%clk
0:00:06.9]} 64. Rb8 {[%clk 0:00:10.5]} 64... Kd4 {[%clk 0:00:07]} 65. Rb4+
{[%clk 0:00:10.1]} 65... Bc4 {[%clk 0:00:06.9]} 66. Rb1 {[%clk 0:00:11]} 66...
Kd5 {[%clk 0:00:07.2]} 67. Rc1 {[%clk 0:00:11.2]} 67... Bb3 {[%clk 0:00:07]} 68.
Rc3 {[%clk 0:00:11.2]} 68... Bc4 {[%clk 0:00:07.3]} 69. Rc1 {[%clk 0:00:11.3]}
69... Rc6 {[%clk 0:00:07.9]} 70. Rd1+ {[%clk 0:00:11.6]} 70... Ke6 {[%clk
0:00:08.3]} 71. Rh1 {[%clk 0:00:11.9]} 71... Bd5 {[%clk 0:00:08.7]} 72. Rh8
{[%clk 0:00:12]} 72... Rc2 {[%clk 0:00:09.1]} 73. Re8+ {[%clk 0:00:12.2]} 73...
Kf5 {[%clk 0:00:09.6]} 74. Rd8 {[%clk 0:00:12.5]} 74... Bc4 {[%clk 0:00:09.7]}
75. Rd1 {[%clk 0:00:12]} 75... Be2 {[%clk 0:00:09.3]} 76. Re1 {[%clk 0:00:12.3]}
76... Rd2 {[%clk 0:00:09.5]} 77. Rh1 {[%clk 0:00:12.2]} 77... Bd3 {[%clk
0:00:09.3]} 78. Re1 {[%clk 0:00:12]} 78... Re2 {[%clk 0:00:08.9]} 79. Rd1 {[%clk
0:00:12.2]} 79... Bc4 {[%clk 0:00:08.4]} 80. Rc1 {[%clk 0:00:12.5]} 80... Be6
{[%clk 0:00:07.6]} 81. Rh1 {[%clk 0:00:11.2]} 81... Bd5 {[%clk 0:00:07.3]} 82.
Rh5+ {[%clk 0:00:11.1]} 82... Ke6 {[%clk 0:00:06.5]} 83. Rh8 {[%clk 0:00:10.8]}
83... e4 {[%clk 0:00:06]} 84. fxe4 {[%clk 0:00:10.2]} 84... Bxe4 {[%clk
0:00:06]} 85. Kf4 {[%clk 0:00:10.2]} 85... f5 {[%clk 0:00:03.1]} 86. g4 {[%clk
0:00:09.9]} 86... Rf2+ {[%clk 0:00:02.1]} 87. Kg5 {[%clk 0:00:10.2]} 87... Rg2
{[%clk 0:00:02]} 88. Rh6+ {[%clk 0:00:10.4]} 88... Kd5 {[%clk 0:00:02.2]} 89.
Rh4 {[%clk 0:00:09.7]} 89... Rxg4+ {[%clk 0:00:02.8]} 90. Rxg4 {[%clk
0:00:09.5]} 90... fxg4 {[%clk 0:00:03.3]} 91. Kxg4 {[%clk 0:00:10.3]} 1/2-1/2

[Event "*** SCC Grand Prix: Titled Tuesday Blitz"]
[Site "Chess.com"]
[Date "2020.06.02"]
[Round "1"]
[White "MishkaFighter"]
[Black "Konek-Gorbunok"]
[Result "0-1"]
[WhiteElo "2602"]
[BlackElo "2296"]
[TimeControl "180+1"]
[EndTime "10:09:27 PDT"]
[Termination "Konek-Gorbunok won by checkmate"]

1. Nf3 {[%clk 0:03:00.9]} 1... e6 {[%clk 0:02:58.8]} 2. g3 {[%clk 0:03:00.1]}
2... d5 {[%clk 0:02:58.6]} 3. Bg2 {[%clk 0:03:01]} 3... c6 {[%clk 0:02:59.2]} 4.
O-O {[%clk 0:03:01.9]} 4... Nf6 {[%clk 0:02:59.2]} 5. c4 {[%clk 0:02:58.9]} 5...
Be7 {[%clk 0:02:59.1]} 6. d4 {[%clk 0:02:59]} 6... Ne4 {[%clk 0:02:58]} 7. Qc2
{[%clk 0:02:58.6]} 7... f5 {[%clk 0:02:58]} 8. Nc3 {[%clk 0:02:57.7]} 8... O-O
{[%clk 0:02:57.9]} 9. Bf4 {[%clk 0:02:55]} 9... Nd7 {[%clk 0:02:57.6]} 10. Rfd1
{[%clk 0:02:54.2]} 10... Ndf6 {[%clk 0:02:56.6]} 11. Rac1 {[%clk 0:02:51.2]}
11... Nd6 {[%clk 0:02:56.5]} 12. cxd5 {[%clk 0:02:48.9]} 12... exd5 {[%clk
0:02:55.8]} 13. b4 {[%clk 0:02:45]} 13... Nfe4 {[%clk 0:02:49.4]} 14. a4 {[%clk
0:02:40.4]} 14... Bd7 {[%clk 0:02:45.3]} 15. Qb3 {[%clk 0:02:32.2]} 15... Nxc3
{[%clk 0:02:27.2]} 16. Rxc3 {[%clk 0:02:31.1]} 16... Ne4 {[%clk 0:02:24.5]} 17.
Rcc1 {[%clk 0:02:25.7]} 17... Bd6 {[%clk 0:02:16.6]} 18. b5 {[%clk 0:02:19]}
18... Bxf4 {[%clk 0:02:13.7]} 19. gxf4 {[%clk 0:02:19.9]} 19... Rf6 {[%clk
0:01:53.2]} 20. Ne5 {[%clk 0:02:15.5]} 20... Be8 {[%clk 0:01:48.1]} 21. bxc6
{[%clk 0:02:11]} 21... bxc6 {[%clk 0:01:46.6]} 22. Qb7 {[%clk 0:02:09.6]} 22...
Rh6 {[%clk 0:01:14.9]} 23. f3 {[%clk 0:01:32.7]} 23... Qh4 {[%clk 0:01:11.2]}
24. fxe4 {[%clk 0:01:20.8]} 24... Qxh2+ {[%clk 0:01:08.5]} 25. Kf1 {[%clk
0:01:20.2]} 25... Qxf4+ {[%clk 0:01:02]} 26. Nf3 {[%clk 0:01:19.4]} 26... Rb8
{[%clk 0:00:50.5]} 27. Qe7 {[%clk 0:00:43.3]} 27... fxe4 {[%clk 0:00:47.1]} 28.
Qe5 {[%clk 0:00:40]} 28... Rf6 {[%clk 0:00:41.9]} 29. Qxf4 {[%clk 0:00:30.7]}
29... Rxf4 {[%clk 0:00:42.8]} 30. Rb1 {[%clk 0:00:31.5]} 30... Rxb1 {[%clk
0:00:41.7]} 31. Rxb1 {[%clk 0:00:32.4]} 31... exf3 {[%clk 0:00:41.8]} 32. Bxf3
{[%clk 0:00:33.3]} 32... Rxd4 {[%clk 0:00:41.6]} 33. Rb8 {[%clk 0:00:31.6]}
33... Kf8 {[%clk 0:00:41.2]} 34. a5 {[%clk 0:00:25.5]} 34... Ra4 {[%clk
0:00:40.4]} 35. Kf2 {[%clk 0:00:23.3]} 35... Rxa5 {[%clk 0:00:40]} 36. Bh5
{[%clk 0:00:23.8]} 36... g6 {[%clk 0:00:39.4]} 37. Bg4 {[%clk 0:00:24.3]} 37...
Ke7 {[%clk 0:00:37.8]} 38. Rb7+ {[%clk 0:00:24.3]} 38... Kf6 {[%clk 0:00:37.8]}
39. Rxh7 {[%clk 0:00:25.2]} 39... c5 {[%clk 0:00:37.2]} 40. Rc7 {[%clk 0:00:24]}
40... c4 {[%clk 0:00:35.2]} 41. Ke3 {[%clk 0:00:20.8]} 41... Bf7 {[%clk
0:00:30.2]} 42. Kd4 {[%clk 0:00:20.7]} 42... Ra2 {[%clk 0:00:26.6]} 43. Bf3
{[%clk 0:00:20.8]} 43... Rd2+ {[%clk 0:00:23.3]} 44. Kc3 {[%clk 0:00:20.5]}
44... Rd1 {[%clk 0:00:22.9]} 45. e3 {[%clk 0:00:17.8]} 45... Rd3+ {[%clk
0:00:21.5]} 46. Kc2 {[%clk 0:00:17.5]} 46... Rxe3 {[%clk 0:00:21.2]} 47. Bd1
{[%clk 0:00:17.2]} 47... d4 {[%clk 0:00:20.8]} 48. Rxa7 {[%clk 0:00:17.2]} 48...
d3+ {[%clk 0:00:19.4]} 49. Kc3 {[%clk 0:00:18.1]} 49... Re1 {[%clk 0:00:19.2]}
50. Kd2 {[%clk 0:00:17.4]} 50... Re5 {[%clk 0:00:17.2]} 51. Ra6+ {[%clk
0:00:18.3]} 51... Kg5 {[%clk 0:00:16.2]} 52. Ra7 {[%clk 0:00:17.7]} 52... Be6
{[%clk 0:00:16.3]} 53. Kc3 {[%clk 0:00:16.7]} 53... Re4 {[%clk 0:00:15.6]} 54.
Ra5+ {[%clk 0:00:15.6]} 54... Bf5 {[%clk 0:00:15.3]} 55. Ra6 {[%clk 0:00:16.4]}
55... Rf4 {[%clk 0:00:15.8]} 56. Rd6 {[%clk 0:00:15.9]} 56... Rf1 {[%clk
0:00:16]} 57. Kd2 {[%clk 0:00:16.2]} 57... Rf2+ {[%clk 0:00:16.3]} 58. Kc3
{[%clk 0:00:16.2]} 58... Rc2+ {[%clk 0:00:16.2]} 59. Bxc2 {[%clk 0:00:15.4]}
59... dxc2 {[%clk 0:00:16.4]} 60. Kd2 {[%clk 0:00:16.3]} 60... Bd3 {[%clk
0:00:14.8]} 61. Rd4 {[%clk 0:00:14.1]} 61... Kf5 {[%clk 0:00:14.5]} 62. Rd8
{[%clk 0:00:12.4]} 62... g5 {[%clk 0:00:14.2]} 63. Rg8 {[%clk 0:00:11.8]} 63...
Kg4 {[%clk 0:00:14.4]} 64. Rf8 {[%clk 0:00:09]} 64... Kg3 {[%clk 0:00:14.4]} 65.
Rg8 {[%clk 0:00:06]} 65... g4 {[%clk 0:00:15.3]} 66. Rf8 {[%clk 0:00:05.9]}
66... Kg2 {[%clk 0:00:15.2]} 67. Rf4 {[%clk 0:00:03.5]} 67... g3 {[%clk
0:00:16.1]} 68. Rf6 {[%clk 0:00:02.3]} 68... Kg1 {[%clk 0:00:15.9]} 69. Rf8
{[%clk 0:00:02]} 69... g2 {[%clk 0:00:16.8]} 70. Rg8 {[%clk 0:00:02.2]} 70...
Be4 {[%clk 0:00:16.2]} 71. Rf8 {[%clk 0:00:01.9]} 71... Kh2 {[%clk 0:00:15.7]}
72. Rh8+ {[%clk 0:00:02.4]} 72... Kg3 {[%clk 0:00:16.1]} 73. Rg8+ {[%clk
0:00:03.3]} 73... Kf2 {[%clk 0:00:16.7]} 74. Rf8+ {[%clk 0:00:02.6]} 74... Bf3
{[%clk 0:00:17.1]} 75. Rg8 {[%clk 0:00:02.6]} 75... g1=Q {[%clk 0:00:16.7]} 76.
Rxg1 {[%clk 0:00:03.5]} 76... Kxg1 {[%clk 0:00:17.5]} 77. Kxc2 {[%clk
0:00:03.7]} 77... Bd5 {[%clk 0:00:17.5]} 78. Kc3 {[%clk 0:00:04.6]} 78... Bg8
{[%clk 0:00:18.4]} 79. Kd4 {[%clk 0:00:04.9]} 79... Kf2 {[%clk 0:00:19.3]} 80.
Kc3 {[%clk 0:00:04.3]} 80... Ke3 {[%clk 0:00:19.5]} 81. Kc2 {[%clk 0:00:05.1]}
81... Kd4 {[%clk 0:00:19.4]} 82. Kc1 {[%clk 0:00:06]} 82... c3 {[%clk
0:00:20.1]} 83. Kc2 {[%clk 0:00:06.9]} 83... Kc4 {[%clk 0:00:19.8]} 84. Kc1
{[%clk 0:00:07.8]} 84... Kd3 {[%clk 0:00:20.1]} 85. Kb1 {[%clk 0:00:08.1]} 85...
Kd2 {[%clk 0:00:20.2]} 86. Ka1 {[%clk 0:00:08.6]} 86... c2 {[%clk 0:00:20.3]}
87. Kb2 {[%clk 0:00:09.5]} 87... c1=Q# {[%clk 0:00:20.4]} 0-1

[Event "*** SCC Grand Prix: Titled Tuesday Blitz"]
[Site "Chess.com"]
[Date "2020.06.02"]
[Round "1"]
[White "abhidabhi"]
[Black "eCztery"]
[Result "1-0"]
[WhiteElo "2716"]
[BlackElo "2358"]
[TimeControl "180+1"]
[EndTime "10:09:33 PDT"]
[Termination "abhidabhi won by resignation"]

1. e4 {[%clk 0:03:00.9]} 1... c5 {[%clk 0:02:57.7]} 2. Nf3 {[%clk 0:02:59.2]}
2... Nc6 {[%clk 0:02:55.8]} 3. Bb5 {[%clk 0:02:58.1]} 3... g6 {[%clk 0:02:56]}
4. Bxc6 {[%clk 0:02:58.1]} 4... dxc6 {[%clk 0:02:56.9]} 5. d3 {[%clk 0:02:58.4]}
5... Bg7 {[%clk 0:02:57.2]} 6. h3 {[%clk 0:02:58.4]} 6... Nf6 {[%clk 0:02:56.9]}
7. O-O {[%clk 0:02:55.3]} 7... Nd7 {[%clk 0:02:57.3]} 8. Nc3 {[%clk 0:02:52.1]}
8... e5 {[%clk 0:02:57.2]} 9. Be3 {[%clk 0:02:52]} 9... O-O {[%clk 0:02:56.1]}
10. a3 {[%clk 0:02:49.7]} 10... f5 {[%clk 0:02:55.2]} 11. b4 {[%clk 0:02:48.1]}
11... cxb4 {[%clk 0:02:48.7]} 12. axb4 {[%clk 0:02:47.8]} 12... f4 {[%clk
0:02:49.2]} 13. Bc1 {[%clk 0:02:35.9]} 13... a6 {[%clk 0:02:35.7]} 14. Bb2
{[%clk 0:02:35.5]} 14... Qc7 {[%clk 0:02:33.4]} 15. Na4 {[%clk 0:02:29]} 15...
b5 {[%clk 0:02:29.9]} 16. Nc5 {[%clk 0:02:27.9]} 16... Nxc5 {[%clk 0:02:30.2]}
17. bxc5 {[%clk 0:02:28.2]} 17... h6 {[%clk 0:02:27.1]} 18. d4 {[%clk
0:02:23.6]} 18... Rd8 {[%clk 0:02:16.8]} 19. Qe2 {[%clk 0:01:52.5]} 19... Be6
{[%clk 0:02:16]} 20. Rfd1 {[%clk 0:01:49.1]} 20... Bc4 {[%clk 0:02:01.6]} 21.
Qe1 {[%clk 0:01:48.6]} 21... exd4 {[%clk 0:01:59.3]} 22. Bxd4 {[%clk 0:01:46.5]}
22... Qe7 {[%clk 0:01:44.8]} 23. Bxg7 {[%clk 0:01:45.4]} 23... Qxg7 {[%clk
0:01:41]} 24. e5 {[%clk 0:01:44.4]} 24... Bd5 {[%clk 0:01:34.1]} 25. Nd4 {[%clk
0:01:39.1]} 25... Re8 {[%clk 0:01:34.4]} 26. e6 {[%clk 0:01:29.5]} 26... Qe7
{[%clk 0:01:34.7]} 27. Qa5 {[%clk 0:01:21]} 27... Qxc5 {[%clk 0:01:22.5]} 28.
Qc7 {[%clk 0:01:17.5]} 28... Qe7 {[%clk 0:01:12.8]} 29. Qxf4 {[%clk 0:01:16.7]}
29... Rf8 {[%clk 0:01:13.3]} 30. Qxh6 {[%clk 0:01:15.9]} 30... Qf6 {[%clk
0:01:08.3]} 31. f3 {[%clk 0:01:15.9]} 31... Bxe6 {[%clk 0:01:03.3]} 32. Nxc6
{[%clk 0:01:06]} 32... Bxh3 {[%clk 0:00:55.5]} 33. Qxh3 {[%clk 0:01:03.4]} 33...
Qxc6 {[%clk 0:00:55.4]} 34. Rd7 {[%clk 0:01:02.3]} 34... Rf7 {[%clk 0:00:48.5]}
35. Rad1 {[%clk 0:01:01.8]} 35... Raf8 {[%clk 0:00:45.2]} 36. R7d6 {[%clk
0:01:00]} 36... Qxc2 {[%clk 0:00:42.7]} 37. Qh6 {[%clk 0:00:58.5]} 37... Qc5+
{[%clk 0:00:40.5]} 38. Kf1 {[%clk 0:00:50.8]} 38... Qc4+ {[%clk 0:00:22.9]} 39.
R1d3 {[%clk 0:00:49.7]} 39... Rg7 {[%clk 0:00:16.6]} 40. Kg1 {[%clk 0:00:46.4]}
40... Qf4 {[%clk 0:00:16.8]} 41. Rxg6 {[%clk 0:00:44]} 41... Qxh6 {[%clk
0:00:12]} 42. Rxh6 {[%clk 0:00:44.1]} 42... Rb8 {[%clk 0:00:11.6]} 43. Rxa6
{[%clk 0:00:43.9]} 43... b4 {[%clk 0:00:12.1]} 44. Rb3 {[%clk 0:00:44.1]} 44...
Rgb7 {[%clk 0:00:12.1]} 45. Re6 {[%clk 0:00:44.3]} 45... Rb5 {[%clk 0:00:12]}
46. Re4 {[%clk 0:00:44.6]} 46... Kf7 {[%clk 0:00:12.9]} 47. g4 {[%clk
0:00:44.7]} 47... Kf6 {[%clk 0:00:13.4]} 48. Kf2 {[%clk 0:00:45]} 48... Kg5
{[%clk 0:00:13.8]} 49. Kg3 {[%clk 0:00:45.6]} 49... Kg6 {[%clk 0:00:13.5]} 50.
Re6+ {[%clk 0:00:45.1]} 50... Kf7 {[%clk 0:00:13.6]} 51. Re4 {[%clk 0:00:45.6]}
51... Kf6 {[%clk 0:00:13.5]} 52. f4 {[%clk 0:00:46.1]} 52... Kg6 {[%clk
0:00:14.1]} 53. Re6+ {[%clk 0:00:44.6]} 53... Kf7 {[%clk 0:00:14.1]} 54. Re4
{[%clk 0:00:44.2]} 54... Kf6 {[%clk 0:00:13.6]} 55. Rd4 {[%clk 0:00:44.8]} 55...
Kg6 {[%clk 0:00:12.8]} 56. Rd6+ {[%clk 0:00:44.5]} 56... Kf7 {[%clk 0:00:13.3]}
57. g5 {[%clk 0:00:44.5]} 57... Rc8 {[%clk 0:00:13.7]} 58. Rd4 {[%clk
0:00:44.3]} 58... Rc3+ {[%clk 0:00:10.6]} 59. Rxc3 {[%clk 0:00:44.2]} 59... bxc3
{[%clk 0:00:11.5]} 60. Rc4 {[%clk 0:00:44.4]} 60... Rb3 {[%clk 0:00:07.4]} 61.
f5 {[%clk 0:00:44]} 61... c2+ {[%clk 0:00:06.9]} 62. Kf2 {[%clk 0:00:44.1]}
62... Rb2 {[%clk 0:00:05.8]} 63. Ke3 {[%clk 0:00:43.5]} 63... Rb5 {[%clk
0:00:05.3]} 64. Rc7+ {[%clk 0:00:42.6]} 64... Ke8 {[%clk 0:00:05]} 65. Ke4
{[%clk 0:00:43.1]} 65... Rb4+ {[%clk 0:00:04.6]} 66. Ke5 {[%clk 0:00:43.4]}
66... Rb5+ {[%clk 0:00:05]} 67. Kf6 {[%clk 0:00:43.4]} 67... Rb6+ {[%clk
0:00:05.5]} 68. Kg7 {[%clk 0:00:42.7]} 68... Rb7 {[%clk 0:00:06]} 69. Rxb7
{[%clk 0:00:42.5]} 69... c1=Q {[%clk 0:00:06.5]} 70. g6 {[%clk 0:00:41.7]} 70...
Qc3+ {[%clk 0:00:06.7]} 71. f6 {[%clk 0:00:42]} 71... Qc8 {[%clk 0:00:04.5]} 72.
Re7+ {[%clk 0:00:41.3]} 72... Kd8 {[%clk 0:00:05]} 73. Kf7 {[%clk 0:00:41.5]}
73... Qc4+ {[%clk 0:00:04.3]} 74. Kf8 {[%clk 0:00:41.7]} 74... Qh4 {[%clk
0:00:03.2]} 75. Kg7 {[%clk 0:00:40.1]} 75... Qg5 {[%clk 0:00:03.1]} 76. Ra7
{[%clk 0:00:37.7]} 76... Qe5 {[%clk 0:00:03]} 77. Ra8+ {[%clk 0:00:37.1]} 77...
Kd7 {[%clk 0:00:03.5]} 78. Ra7+ {[%clk 0:00:37.6]} 78... Kd8 {[%clk 0:00:03.7]}
79. Re7 {[%clk 0:00:33.8]} 79... Qd4 {[%clk 0:00:03.5]} 80. Kf7 {[%clk
0:00:33.1]} 80... Qd5+ {[%clk 0:00:04]} 81. Kf8 {[%clk 0:00:33.2]} 81... Qd4
{[%clk 0:00:02.8]} 82. Re6 {[%clk 0:00:28]} 82... Qb4+ {[%clk 0:00:02.5]} 83.
Kf7 {[%clk 0:00:26.1]} 83... Qc4 {[%clk 0:00:02.6]} 84. g7 {[%clk 0:00:25.9]}
84... Kd7 {[%clk 0:00:03.1]} 85. g8=Q {[%clk 0:00:25.3]} 85... Qxe6+ {[%clk
0:00:03.9]} 86. Kg7 {[%clk 0:00:25.6]} 86... Qg4+ {[%clk 0:00:02.6]} 87. Kf8
{[%clk 0:00:25.9]} 87... Qg5 {[%clk 0:00:02.1]} 88. Qxg5 {[%clk 0:00:25.5]} 1-0